[Event "Gaprindashvili Cup Women I Stage 2020"]
[Site "Online"]
[Date "2020.11.04"]
[Round "1.1"]
[White "Esadze, Tamari"]
[Black "Mgeladze, Kesaria"]
[Result "1-0"]
[ECO "B66"]
[WhiteElo "1889"]
[BlackElo "1380"]
[Annotator "NA RC"]
[PlyCount "43"]
[EventDate "2020.11.04"]
[EventType "swiss"]
[SourceTitle "playchess.com"]
[Source "ChessBase"]
[SourceQuality "1"]
[TimeControl "1500+5"]

{[%evp 24,43,60,66,119,134,156,98,103,104,32767,137,132,160,212,236,365,208,531,550,1605,1633]} 1. e4 {[%emt 0:00:12]} c5 {[%emt 0:00:03]} 2. Nf3 {[%emt 0:00:03]} d6 {[%emt 0:00:02]} 3. d4 {[%emt 0:00:04]} cxd4 {[%emt 0:00:02]} 4. Nxd4 {[%emt 0:00:03]} Nf6 {[%emt 0:00:01]} 5. Nc3 {[%emt 0:00:04]} Nc6 {[%emt 0:00:02]} 6. Bg5 {[%emt 0:00:08]} e6 {[%emt 0:00:02]} 7. Qd2 {[%emt 0:00:05]} a6 {[%emt 0:00:02]} 8. O-O-O {[%emt 0:00:04]} h6 {[%emt 0:00:02]} 9. Be3 {[%emt 0:00:40]} Bd7 {[%emt 0:00:32]} 10. f3 {[%emt 0:00:15]} Be7 {[%emt 0:00:11]} 11. g4 {[%emt 0:00:11]} b5 {[%emt 0:00:57]} 12. Kb1 {[%emt 0:00:33] B66: Sicilian: Richter-Rauzer: 7...a6 8 0-0-0 h6.} b4 {[%emt 0:02:31]} 13. Nce2 {[%emt 0:00:05] [#]} Rb8 $146 {[%emt 0:00:08]} ({Predecessor:} 13... Ne5 14. Ng3 a5 15. h4 a4 16. g5 hxg5 17. hxg5 Nh7 18. f4 Ng4 19. Bh3 Nxe3 20. Qxe3 {1-0 (48) Moll,A (2217)-Zakirova,A (1585) chess.com INT 2020}) 14. h4 {[%emt 0:00:31]} a5 {[%emt 0:04:32]} 15. Nxc6 {[%emt 0:00:53]} Bxc6 {[%emt 0:00:03]} 16. Nd4 {[%emt 0:00:03]} Bd7 {[%emt 0:00:55]} 17. Bg2 {[%emt 0:00:50]} a4 {[%emt 0:02:59]} 18. g5 {[%emt 0:00:26]} Ng8 {[%emt 0:00:15]} (18... Nh5 $16) 19. f4 {[%emt 0:01:15]} Qa5 {[%emt 0:03:23]} (19... b3 $142 20. cxb3 (20. axb3 axb3 21. Nxb3 Qc7 $18) 20... axb3 21. Nxb3 Rc8) 20. g6 {[%emt 0:01:21]} (20. e5 $142) 20... Bf6 $2 {[%emt 0:03:48] [#]} (20... Nf6 {is tougher.} 21. e5 Nd5) 21. e5 $1 {[%emt 0:01:25]} dxe5 $18 {[%emt 0:01:23] [#]} (21... Qc7 $142 22. Nf3 fxg6 23. exf6 gxf6 24. Qxd6 Qxd6 25. Rxd6 Ne7) 22. Nc6 $1 {[%emt 0:00:04]} 1-0

[Event "Gaprindashvili Cup Women I Stage 2020"]
[Site "Online"]
[Date "2020.11.04"]
[Round "1.2"]
[White "Gvatua, Mariam"]
[Black "Khazhomia, Anuki"]
[Result "0-1"]
[ECO "A88"]
[WhiteElo "1343"]
[BlackElo "1880"]
[Annotator "NA RC"]
[PlyCount "78"]
[EventDate "2020.11.04"]
[EventType "swiss"]
[SourceTitle "playchess.com"]
[Source "ChessBase"]
[SourceQuality "1"]
[TimeControl "1500+5"]

{[%evp 17,77,23,21,-27,-16,-15,0,-16,-20,-172,-159,-173,-160,-154,-181,-184,-127,32767,-158,-172,-154,-143,-152,-165,-156,-162,-147,32767,32767,32767,32767,32767,32767,32767,32767,-268,-292,-257,-308,-364,-5,-314,-303,-308,-325,-1587,-608,-655,-6411,-29984,-808,-29996,-29997,-29998,-29997,-29997,-29997,-29997,-29998,-29998,-29999,-29999]} 1. d4 {[%emt 0:00:06]} f5 {[%emt 0:01:32]} 2. c4 {[%emt 0:00:10]} Nf6 {[%emt 0:00:04]} 3. Nc3 {[%emt 0:00:02]} g6 {[%emt 0:00:03]} 4. Nf3 {[%emt 0:00:03]} Bg7 {[%emt 0:00:03]} 5. g3 {[%emt 0:00:01]} O-O {[%emt 0:00:06]} 6. Bg2 {[%emt 0:00:02]} d6 {[%emt 0:00:01]} 7. Bg5 {[%emt 0:00:13]} c6 {[%emt 0:00:13]} 8. O-O {[%emt 0:01:00]} Qc7 {[%emt 0:00:20] A88: Dutch Defence: Leningrad System: 5 Nf3 0-0 6 0-0 d6 7 Nc3 c6.} 9. Rc1 {[%emt 0:01:43]} e5 {[%emt 0:00:35]} 10. Bxf6 {[%emt 0:00:56]} Bxf6 {[%emt 0:00:05]} 11. d5 {[%emt 0:00:03] [#]} c5 $146 {[%emt 0:03:14]} ({Predecessor:} 11... Bd7 12. Qd2 c5 13. e4 Na6 14. a3 Qd8 15. h3 Nc7 16. b4 b6 17. b5 Bg7 {0-1 (41) Nikolic,M-Ugrcic,Z (2054) Belgrade 2013}) 12. Nb5 {[%emt 0:00:30]} Qe7 {[%emt 0:00:10]} 13. e3 $2 {[%emt 0:00:13]} (13. e4 $1 $11 {and White has nothing to worry.}) 13... e4 {[%emt 0:00:22]} 14. Nd2 {[%emt 0:00:04]} Bxb2 {[%emt 0:00:04]} 15. Rb1 {[%emt 0:00:03]} Bf6 {[%emt 0:00:33]} 16. Qa4 {[%emt 0:00:05]} Bd7 {[%emt 0:00:32]} (16... Nd7 $19 17. Qa3 Ne5) 17. Qa5 {[%emt 0:00:53]} b6 {[%emt 0:01:33]} 18. Qa3 {[%emt 0:00:04]} Bxb5 {[%emt 0:00:16]} 19. cxb5 {[%emt 0:00:23]} Nd7 {[%emt 0:00:21]} 20. Nc4 {[%emt 0:00:05]} Ne5 {[%emt 0:00:12]} 21. Nxe5 {[%emt 0:00:03]} Qxe5 {[%emt 0:01:05]} 22. Rfd1 {[%emt 0:00:12]} Rfc8 {[%emt 0:02:58]} 23. Rbc1 {[%emt 0:00:20]} c4 {[%emt 0:00:33]} 24. Rc2 {[%emt 0:00:18]} Qe7 {[%emt 0:01:35]} 25. Qb4 {[%emt 0:01:29]} c3 {[%emt 0:00:11]} 26. g4 {[%emt 0:02:07]} (26. a4 $142) 26... Be5 {[%emt 0:02:53]} 27. gxf5 {[%emt 0:00:14]} gxf5 {[%emt 0:00:22]} 28. Kh1 {[%emt 0:00:06]} Qh4 $2 {[%emt 0:02:50]} (28... Kh8 $19 29. Rf1 Qg5) 29. h3 $2 {[%emt 0:00:06]} (29. f4 $11 {and White is okay.} Bg7 30. Qxd6) 29... Rc5 {[%emt 0:00:04]} 30. Rg1 {[%emt 0:00:44]} Kh8 {[%emt 0:00:19]} 31. Qb3 $2 {[%emt 0:00:23]} (31. f4 Bf6 32. Qa4) 31... f4 {[%emt 0:00:16]} 32. Qb4 {[%emt 0:00:58]} f3 {[%emt 0:00:31]} 33. Bf1 {[%emt 0:00:17]} Rxd5 {[%emt 0:00:15]} (33... Rg8 $142 34. Rxg8+ Kxg8) 34. Rg4 {[%emt 0:00:44] [#]} Rd1 $1 {[%emt 0:00:03]} 35. Rg3 {[%emt 0:02:25]} Rxf1+ {[%emt 0:00:54]} 36. Kh2 {[%emt 0:00:05] [#]} Rxf2+ $1 {[%emt 0:00:04]} 37. Rxf2 {[%emt 0:00:04]} Qxg3+ {[%emt 0:00:07] Double Attack} 38. Kh1 {[%emt 0:00:06]} Qxf2 {[%emt 0:00:05] Double Attack} 39. Qxe4 {[%emt 0:00:12]} Qh2# {[%emt 0:00:05]} 0-1

[Event "Gaprindashvili Cup Women I Stage 2020"]
[Site "Online"]
[Date "2020.11.04"]
[Round "1.4"]
[White "Didbaridze, Meri"]
[Black "Tsotsonava, Elene"]
[Result "0-1"]
[ECO "A03"]
[WhiteElo "1264"]
[BlackElo "1805"]
[Annotator "NA RC"]
[PlyCount "50"]
[EventDate "2020.11.04"]
[EventType "swiss"]
[SourceTitle "playchess.com"]
[Source "ChessBase"]
[SourceQuality "1"]
[TimeControl "1500+5"]

{[%evp 18,50,-48,-81,-80,-160,-126,-126,-145,-343,-341,-365,-418,-386,-291,-391,-343,-477,-481,-668,-491,-729,-679,-688,-775,-946,-708,-1479,-1117,-2989,-29990,-29991,-29987,-29993,-29994]} 1. f4 {[%emt 0:00:04]} Nf6 {[%emt 0:00:05]} 2. Nf3 {[%emt 0:00:05]} d5 {[%emt 0:00:02]} 3. e3 {[%emt 0:00:03]} c5 {[%emt 0:00:08]} 4. b3 {[%emt 0:00:02]} Nc6 {[%emt 0:00:11]} 5. Bb2 {[%emt 0:00:05]} e6 {[%emt 0:00:03]} 6. Bd3 {[%emt 0:00:06] A03: Bird's Opening with 1...d5.} Bd6 {[%emt 0:00:09]} 7. O-O {[%emt 0:00:06]} O-O {[%emt 0:00:19]} 8. a3 {[%emt 0:00:47]} a6 {[%emt 0:00:24] [#]} 9. h3 $146 {[%emt 0:01:54]} ({Predecessor:} 9. Qe1 Ne4 10. Be2 Be7 11. d3 Bf6 12. Ne5 Nd6 13. Nd2 Qc7 14. Ndf3 b5 15. Rb1 {0-1 (36) Schoenegg,W (2024)-Mueller,W (2134) Eppingen 2004}) 9... b5 {[%emt 0:02:06]} 10. Ne5 {[%emt 0:03:22]} Bb7 {[%emt 0:00:38]} 11. Rf3 {[%emt 0:08:05]} (11. Be2 $142) 11... d4 {[%emt 0:04:45]} 12. Nxc6 {[%emt 0:00:46]} Bxc6 {[%emt 0:00:03]} 13. Rg3 $2 {[%emt 0:00:07]} (13. exd4 $17 Nh5 14. dxc5 Bxc5+ 15. Kh2) 13... e5 {[%emt 0:01:50]} 14. fxe5 {[%emt 0:01:31]} Bxe5 {[%emt 0:00:03]} 15. Rg5 {[%emt 0:00:07]} Qd6 {[%emt 0:00:55]} 16. Qe1 {[%emt 0:01:56]} h6 {[%emt 0:01:13]} 17. Rf5 {[%emt 0:00:06]} (17. Rxe5 $142 Qxe5 18. Qf1) 17... Rfe8 {[%emt 0:01:48]} 18. Kh1 {[%emt 0:00:57]} Rab8 {[%emt 0:00:37]} 19. Rf1 {[%emt 0:02:22]} dxe3 {[%emt 0:01:46]} 20. Bxe5 {[%emt 0:00:14]} Qxe5 {[%emt 0:00:02]} 21. Ra2 {[%emt 0:00:21] [#]} c4 $1 {[%emt 0:03:02]} 22. bxc4 {[%emt 0:01:02]} bxc4 {[%emt 0:00:03]} 23. Bf5 {[%emt 0:00:19]} Rxb1 {[%emt 0:00:52] Promotion} 24. Qxb1 {[%emt 0:00:11]} e2 {[%emt 0:00:02]} 25. Re1 {[%emt 0:00:21]} Qg3 {[%emt 0:00:34]} 0-1

[Event "Gaprindashvili Cup Women I Stage 2020"]
[Site "Online"]
[Date "2020.11.04"]
[Round "1.5"]
[White "Bedoshvili, Dea"]
[Black "Limar, Maria"]
[Result "1-0"]
[ECO "D02"]
[WhiteElo "1667"]
[BlackElo "1229"]
[Annotator "NA RC"]
[PlyCount "99"]
[EventDate "2020.11.04"]
[EventType "swiss"]
[SourceTitle "playchess.com"]
[Source "ChessBase"]
[SourceQuality "1"]
[TimeControl "1500+5"]

1. d4 {[%emt 0:00:03]} d5 {[%emt 0:23:06]} 2. Nf3 {[%emt 0:00:05]} Nf6 {[%emt 0:00:05]} 3. Nbd2 {[%emt 0:00:03]} e6 {[%emt 0:00:10]} 4. g3 {[%emt 0:00:14]} Be7 {[%emt 0:00:12]} 5. Bg2 {[%emt 0:00:02]} O-O {[%emt 0:00:28]} 6. O-O {[%emt 0:01:09]} c5 {[%emt 0:00:21]} 7. b3 {[%emt 0:00:30]} Nc6 {[%emt 0:00:09]} 8. Bb2 {[%emt 0:00:07]} b6 {[%emt 0:00:13]} 9. Rc1 {[%emt 0:00:25]} Bb7 {[%emt 0:00:19]} 10. c4 {[%emt 0:01:30]} Qd7 {[%emt 0:00:25]} 11. dxc5 {[%emt 0:00:18]} bxc5 {[%emt 0:00:15]} 12. cxd5 {[%emt 0:00:03]} exd5 {[%emt 0:00:03]} 13. Qc2 {[%emt 0:00:04]} Qe6 {[%emt 0:00:07]} 14. Rfe1 {[%emt 0:00:19]} Nb4 {[%emt 0:00:04]} 15. Qb1 {[%emt 0:00:05]} Qd7 {[%emt 0:00:10]} 16. a3 {[%emt 0:00:19]} Nc6 {[%emt 0:00:05]} 17. Ng5 {[%emt 0:00:06]} h6 {[%emt 0:00:05]} 18. Bxf6 {[%emt 0:00:07]} hxg5 {[%emt 0:00:02]} 19. Bb2 {[%emt 0:00:11]} Rac8 {[%emt 0:00:06]} 20. Qa1 {[%emt 0:00:03]} f6 {[%emt 0:00:05]} 21. Nf3 {[%emt 0:00:09]} Bd6 {[%emt 0:00:09]} 22. Red1 {[%emt 0:00:02]} Ne5 {[%emt 0:00:03]} 23. Nxe5 {[%emt 0:00:14]} Bxe5 {[%emt 0:00:04]} 24. Bxe5 {[%emt 0:00:06]} fxe5 {[%emt 0:00:02]} 25. Qxe5 {[%emt 0:00:03]} Qd8 {[%emt 0:00:04]} 26. Bxd5+ {[%emt 0:00:07]} Bxd5 {[%emt 0:00:04]} 27. Qxd5+ {[%emt 0:00:04]} Kh8 {[%emt 0:00:03]} 28. Qg2 {[%emt 0:00:09]} Qf6 {[%emt 0:00:04]} 29. Rd3 {[%emt 0:00:07]} Rfd8 {[%emt 0:00:12]} 30. Rf3 {[%emt 0:00:26]} Qb2 {[%emt 0:00:04]} 31. Qh3+ {[%emt 0:00:12]} Kg8 {[%emt 0:00:06]} 32. Qe6+ {[%emt 0:00:02]} Kh8 {[%emt 0:00:08]} 33. Rf1 {[%emt 0:00:26]} Qxa3 {[%emt 0:00:05]} 34. Rf7 {[%emt 0:00:11]} Rf8 {[%emt 0:00:07]} 35. Rb7 {[%emt 0:00:07]} Rb8 {[%emt 0:00:04]} 36. Rxb8 {[%emt 0:00:08]} Rxb8 {[%emt 0:00:03]} 37. Rd1 {[%emt 0:00:54]} Qxb3 {[%emt 0:00:05]} 38. Qh3+ {[%emt 0:00:03]} Kg8 {[%emt 0:00:03]} 39. Rd7 {[%emt 0:00:08]} Qb1+ {[%emt 0:00:09]} 40. Qf1 {[%emt 0:00:21]} Qe4 {[%emt 0:00:04]} 41. Rd1 {[%emt 0:00:15]} c4 {[%emt 0:00:03]} 42. Rc1 {[%emt 0:00:19]} Qd5 {[%emt 0:00:08]} 43. Qe1 {[%emt 0:00:11]} Rc8 {[%emt 0:00:05]} 44. e4 {[%emt 0:00:02]} Qe5 {[%emt 0:00:05]} 45. Qe3 {[%emt 0:00:22]} a5 {[%emt 0:00:04]} 46. f4 {[%emt 0:00:14]} gxf4 {[%emt 0:00:04]} 47. gxf4 {[%emt 0:00:02]} Qb5 {[%emt 0:00:05]} 48. e5 {[%emt 0:00:09]} a4 {[%emt 0:00:05]} 49. e6 {[%emt 0:00:27]} Re8 {[%emt 0:00:06]} 50. Qe4 {[%emt 0:00:10]} 1-0

[Event "Gaprindashvili Cup Women I Stage 2020"]
[Site "Online"]
[Date "2020.11.04"]
[Round "1.6"]
[White "Kalandadze, Mariam"]
[Black "Lagazauri, Tamar"]
[Result "0-1"]
[ECO "D63"]
[WhiteElo "1147"]
[BlackElo "1657"]
[Annotator "NA RC"]
[PlyCount "88"]
[EventDate "2020.11.04"]
[EventType "swiss"]
[SourceTitle "playchess.com"]
[Source "ChessBase"]
[SourceQuality "1"]
[TimeControl "1500+5"]

1. d4 {[%emt 0:00:04]} d5 {[%emt 0:00:06]} 2. c4 {[%emt 0:00:03]} e6 {[%emt 0:00:03]} 3. Nf3 {[%emt 0:00:05]} Nf6 {[%emt 0:00:04]} 4. Nc3 {[%emt 0:00:12]} b6 {[%emt 0:00:10]} 5. Bg5 {[%emt 0:00:20]} Be7 {[%emt 0:00:15]} 6. cxd5 {[%emt 0:00:51]} exd5 {[%emt 0:01:56]} 7. e3 {[%emt 0:00:46]} Bb7 {[%emt 0:00:18]} 8. Be2 {[%emt 0:00:18]} O-O {[%emt 0:00:11]} 9. O-O {[%emt 0:00:07]} Nbd7 {[%emt 0:00:22]} 10. Rc1 {[%emt 0:00:42]} a6 {[%emt 0:00:52]} 11. Nd2 {[%emt 0:01:50]} Re8 {[%emt 0:02:25]} 12. Bf3 {[%emt 0:00:26]} Rc8 {[%emt 0:03:05]} 13. Qb3 {[%emt 0:01:53]} Ne4 {[%emt 0:01:20]} 14. Ndxe4 {[%emt 0:01:23]} dxe4 {[%emt 0:00:42]} 15. Bxe7 {[%emt 0:00:15]} Rxe7 {[%emt 0:02:19]} 16. Be2 {[%emt 0:00:22]} Nf6 {[%emt 0:03:05]} 17. Rfd1 {[%emt 0:02:57]} Nd5 {[%emt 0:05:33]} 18. Bxa6 {[%emt 0:03:13]} Nxc3 {[%emt 0:00:18]} 19. Bxb7 {[%emt 0:00:31]} Ne2+ {[%emt 0:00:07]} 20. Kh1 {[%emt 0:00:49]} Nxc1 {[%emt 0:00:05]} 21. Rxc1 {[%emt 0:00:03]} Rb8 {[%emt 0:00:08]} 22. Bd5 {[%emt 0:00:33]} Qd7 {[%emt 0:02:21]} 23. Bc6 {[%emt 0:00:27]} Qf5 {[%emt 0:00:49]} 24. Kg1 {[%emt 0:00:23]} Rd8 {[%emt 0:00:15]} 25. Qc4 {[%emt 0:00:41]} h5 {[%emt 0:00:06]} 26. d5 {[%emt 0:00:38]} h4 {[%emt 0:00:06]} 27. Qb5 {[%emt 0:02:57]} h3 {[%emt 0:00:03]} 28. g3 {[%emt 0:00:28]} Qf3 {[%emt 0:00:03]} 29. Qf1 {[%emt 0:00:05]} Qg4 {[%emt 0:00:11]} 30. Rd1 {[%emt 0:00:53]} Rd6 {[%emt 0:00:02]} 31. Rd2 {[%emt 0:00:11]} Re5 {[%emt 0:00:08]} 32. Rd4 {[%emt 0:00:29]} Rh5 {[%emt 0:00:06]} 33. Rd2 {[%emt 0:00:31]} Qf3 {[%emt 0:00:02]} 34. Rd1 {[%emt 0:00:58]} Kh7 {[%emt 0:00:07]} 35. Rd2 {[%emt 0:00:36]} Rdh6 {[%emt 0:00:02]} 36. Bb5 {[%emt 0:00:47]} Qg2+ {[%emt 0:00:07]} 37. Qxg2 {[%emt 0:00:03]} hxg2 {[%emt 0:00:01]} 38. h4 {[%emt 0:00:02]} Rd6 {[%emt 0:00:04]} 39. Bc4 {[%emt 0:00:08]} g5 {[%emt 0:00:06]} 40. Be2 {[%emt 0:00:08]} g4 {[%emt 0:00:08]} 41. Bxg4 {[%emt 0:00:05]} Rhxd5 {[%emt 0:00:03]} 42. Rxd5 {[%emt 0:00:08]} Rxd5 {[%emt 0:00:01]} 43. Kxg2 {[%emt 0:00:02]} f5 {[%emt 0:00:02]} 44. Bh5 {[%emt 0:00:11]} Rd2 {[%emt 0:00:10]} 0-1

[Event "Gaprindashvili Cup Women I Stage 2020"]
[Site "Online"]
[Date "2020.11.04"]
[Round "1.7"]
[White "Maghlakelidze, Rusudan"]
[Black "Zarkua, Anastasia"]
[Result "1-0"]
[ECO "A36"]
[WhiteElo "1613"]
[BlackElo "1124"]
[Annotator "NA RC"]
[PlyCount "85"]
[EventDate "2020.11.04"]
[EventType "swiss"]
[SourceTitle "playchess.com"]
[Source "ChessBase"]
[SourceQuality "1"]
[TimeControl "1500+5"]

1. c4 {[%emt 0:00:05]} c5 {[%emt 0:00:04]} 2. Nc3 {[%emt 0:00:08]} Nc6 {[%emt 0:00:02]} 3. g3 {[%emt 0:00:03]} Nf6 {[%emt 0:00:02]} 4. Bg2 {[%emt 0:00:02]} g6 {[%emt 0:00:01]} 5. d3 {[%emt 0:00:02]} Bg7 {[%emt 0:00:02]} 6. e4 {[%emt 0:00:07]} d6 {[%emt 0:00:08]} 7. Nge2 {[%emt 0:00:03]} O-O {[%emt 0:00:02]} 8. O-O {[%emt 0:00:03]} a6 {[%emt 0:00:33]} 9. Rb1 {[%emt 0:00:25]} Rb8 {[%emt 0:00:29]} 10. f4 {[%emt 0:00:16]} Bg4 {[%emt 0:00:30]} 11. h3 {[%emt 0:00:05]} Bd7 {[%emt 0:00:06]} 12. a4 {[%emt 0:01:54]} Ne8 {[%emt 0:00:41]} 13. Be3 {[%emt 0:02:32]} Nc7 {[%emt 0:00:38]} 14. d4 {[%emt 0:02:58]} cxd4 {[%emt 0:00:21]} 15. Nxd4 {[%emt 0:00:05]} Ne6 {[%emt 0:01:23]} 16. Nxe6 {[%emt 0:00:50]} Bxe6 {[%emt 0:00:25]} 17. Nd5 {[%emt 0:00:05]} Bxd5 {[%emt 0:01:29]} 18. exd5 {[%emt 0:01:40]} Nb4 {[%emt 0:00:17]} 19. Qd2 {[%emt 0:01:36]} a5 {[%emt 0:00:51]} 20. f5 {[%emt 0:00:23]} Rc8 {[%emt 0:02:02]} 21. b3 {[%emt 0:00:34]} Na6 {[%emt 0:01:14]} 22. Be4 {[%emt 0:04:22]} Nc5 {[%emt 0:00:10]} 23. Bc2 {[%emt 0:00:06]} Qd7 {[%emt 0:01:33]} 24. Kh2 {[%emt 0:00:28]} Qc7 {[%emt 0:01:34]} 25. h4 {[%emt 0:01:47]} Rfd8 {[%emt 0:01:34]} 26. fxg6 {[%emt 0:00:42]} hxg6 {[%emt 0:00:04]} 27. h5 {[%emt 0:00:05]} gxh5 {[%emt 0:02:38]} 28. Qe2 {[%emt 0:01:56]} Nd7 {[%emt 0:01:58]} 29. Qxh5 {[%emt 0:00:19]} Ne5 {[%emt 0:02:24]} 30. Rf5 {[%emt 0:01:34]} e6 {[%emt 0:01:58]} 31. Rg5 {[%emt 0:00:21]} f6 {[%emt 0:00:55]} 32. Qh7+ {[%emt 0:00:29]} Kf8 {[%emt 0:00:09]} 33. Rf1 {[%emt 0:00:39]} Qe7 {[%emt 0:01:04]} 34. Kg2 {[%emt 0:00:29]} exd5 {[%emt 0:00:08]} 35. Rxg7 {[%emt 0:00:10]} Qxg7 {[%emt 0:00:10]} 36. Bh6 {[%emt 0:00:02]} Rd7 {[%emt 0:00:09]} 37. Rxf6+ {[%emt 0:00:10]} Rf7 {[%emt 0:00:05]} 38. Rxf7+ {[%emt 0:00:04]} Nxf7 {[%emt 0:00:04]} 39. Qxg7+ {[%emt 0:00:02]} Ke7 {[%emt 0:00:02]} 40. Bg6 {[%emt 0:00:04]} Rf8 {[%emt 0:00:05]} 41. Qxf8+ {[%emt 0:00:02]} Kf6 {[%emt 0:00:01]} 42. Qxf7+ {[%emt 0:00:02]} Ke5 {[%emt 0:00:02]} 43. Bg7# {[%emt 0:00:07]} 1-0

[Event "Gaprindashvili Cup Women I Stage 2020"]
[Site "Online"]
[Date "2020.11.04"]
[Round "1.8"]
[White "Ashotia, Barbare"]
[Black "Antia, Sopia"]
[Result "0-1"]
[ECO "B22"]
[WhiteElo "1076"]
[BlackElo "1594"]
[Annotator "NA RC"]
[PlyCount "154"]
[EventDate "2020.11.04"]
[EventType "swiss"]
[SourceTitle "playchess.com"]
[Source "ChessBase"]
[SourceQuality "1"]
[TimeControl "1500+5"]

1. e4 {[%emt 0:00:00]} c5 {[%emt 0:00:05]} 2. c3 {[%emt 0:00:13]} Nf6 {[%emt 0:00:13]} 3. e5 {[%emt 0:00:20]} Nd5 {[%emt 0:00:02]} 4. d4 {[%emt 0:00:14]} cxd4 {[%emt 0:00:09]} 5. Nf3 {[%emt 0:00:06]} e6 {[%emt 0:00:18]} 6. cxd4 {[%emt 0:00:33]} Nc6 {[%emt 0:00:03]} 7. Bc4 {[%emt 0:00:20]} Nb6 {[%emt 0:00:27]} 8. Bb3 {[%emt 0:00:18]} d6 {[%emt 0:00:35]} 9. Kf1 {[%emt 0:01:38]} Be7 {[%emt 0:00:52]} 10. Kg1 {[%emt 0:00:32]} O-O {[%emt 0:00:13]} 11. h3 {[%emt 0:00:02]} Qc7 {[%emt 0:00:33]} 12. Bf4 {[%emt 0:00:21]} Rd8 {[%emt 0:00:54]} 13. Qe2 {[%emt 0:00:18]} a5 {[%emt 0:00:43]} 14. Kh2 {[%emt 0:00:56]} Nd5 {[%emt 0:02:44]} 15. Bxd5 {[%emt 0:01:16]} exd5 {[%emt 0:00:04]} 16. Nc3 {[%emt 0:00:13]} dxe5 {[%emt 0:00:07]} 17. Nxe5 {[%emt 0:00:46]} Nxd4 {[%emt 0:02:21]} 18. Qd2 {[%emt 0:01:13]} Ne6 {[%emt 0:01:57]} 19. Bg3 {[%emt 0:01:13]} Qc5 {[%emt 0:02:12]} 20. Rac1 {[%emt 0:01:00]} d4 {[%emt 0:00:56]} 21. Na4 {[%emt 0:02:49]} Qb5 {[%emt 0:01:14]} 22. b3 {[%emt 0:00:22]} Bb4 {[%emt 0:03:22]} 23. Qb2 {[%emt 0:02:49]} Bd6 {[%emt 0:01:47]} 24. Rhe1 {[%emt 0:00:39]} Bd7 {[%emt 0:01:06]} 25. Nxd7 {[%emt 0:03:13]} Bxg3+ {[%emt 0:00:04]} 26. fxg3 {[%emt 0:00:04]} Rxd7 {[%emt 0:00:09]} 27. Rc4 {[%emt 0:01:10]} h6 {[%emt 0:00:26]} 28. Rec1 {[%emt 0:00:16]} Rad8 {[%emt 0:00:24]} 29. Nc5 {[%emt 0:00:49]} Nxc5 {[%emt 0:00:16]} 30. Rxc5 {[%emt 0:00:03]} Qa6 {[%emt 0:00:04]} 31. Rd1 {[%emt 0:00:20]} b6 {[%emt 0:00:42]} 32. Rc4 {[%emt 0:00:56]} d3 {[%emt 0:00:02]} 33. Qd2 {[%emt 0:00:41]} b5 {[%emt 0:00:50]} 34. Rc3 {[%emt 0:00:22]} b4 {[%emt 0:00:03]} 35. Rc4 {[%emt 0:00:07]} Re7 {[%emt 0:00:32]} 36. Qf4 {[%emt 0:00:37]} Qe6 {[%emt 0:00:48]} 37. Rd4 {[%emt 0:00:17]} Rxd4 {[%emt 0:00:03]} 38. Qxd4 {[%emt 0:00:02]} Rd7 {[%emt 0:00:02]} 39. Qc5 {[%emt 0:00:09]} Rd5 {[%emt 0:00:09]} 40. Qc4 {[%emt 0:00:10]} Qd7 {[%emt 0:00:23]} 41. Rd2 {[%emt 0:00:24]} Rd4 {[%emt 0:00:08]} 42. Qc5 {[%emt 0:00:08]} Rd5 {[%emt 0:00:04]} 43. Qc4 {[%emt 0:00:01]} Qd8 {[%emt 0:00:05]} 44. Qa6 {[%emt 0:00:06]} Kh7 {[%emt 0:00:13]} 45. Qc4 {[%emt 0:00:02]} Rd4 {[%emt 0:00:05]} 46. Qb5 {[%emt 0:00:04]} Qd5 {[%emt 0:00:06]} 47. Qxd5 {[%emt 0:00:15]} Rxd5 {[%emt 0:00:02]} 48. Kg1 {[%emt 0:00:01]} Kg6 {[%emt 0:00:04]} 49. Kf2 {[%emt 0:00:02]} Kf5 {[%emt 0:00:11]} 50. Ke3 {[%emt 0:00:02]} Ke5 {[%emt 0:00:07]} 51. Rxd3 {[%emt 0:00:07]} Rc5 {[%emt 0:00:05]} 52. g4 {[%emt 0:00:17]} Rc2 {[%emt 0:00:04]} 53. Rd2 {[%emt 0:00:04]} Rc3+ {[%emt 0:00:01]} 54. Rd3 {[%emt 0:00:02]} Rc2 {[%emt 0:00:09]} 55. Rd2 {[%emt 0:00:02]} Rxd2 {[%emt 0:00:02]} 56. Kxd2 {[%emt 0:00:02]} Kd4 {[%emt 0:00:02]} 57. g3 {[%emt 0:00:02]} g6 {[%emt 0:00:04]} 58. h4 {[%emt 0:00:05]} f6 {[%emt 0:00:03]} 59. Ke2 {[%emt 0:00:35]} Kc3 {[%emt 0:00:02]} 60. Ke3 {[%emt 0:00:01]} Kb2 {[%emt 0:00:02]} 61. Kd2 {[%emt 0:00:02]} Kxa2 {[%emt 0:00:02]} 62. Kc2 {[%emt 0:00:02]} Ka3 {[%emt 0:00:02]} 63. g5 {[%emt 0:00:04]} hxg5 {[%emt 0:00:03]} 64. hxg5 {[%emt 0:00:02]} f5 {[%emt 0:00:04]} 65. Kd3 {[%emt 0:00:07]} Kxb3 {[%emt 0:00:03]} 66. Kd4 {[%emt 0:00:01]} Kc2 {[%emt 0:00:04]} 67. Ke5 {[%emt 0:00:02]} b3 {[%emt 0:00:02]} 68. Kf6 {[%emt 0:00:01]} b2 {[%emt 0:00:01]} 69. Kxg6 {[%emt 0:00:02]} b1=Q {[%emt 0:00:03]} 70. Kh6 {[%emt 0:00:05]} Qh1+ {[%emt 0:00:07]} 71. Kg7 {[%emt 0:00:03]} Qg2 {[%emt 0:00:07]} 72. g6 {[%emt 0:00:04]} Qxg3 {[%emt 0:00:03]} 73. Kf6 {[%emt 0:00:03]} a4 {[%emt 0:00:02]} 74. g7 {[%emt 0:00:02]} a3 {[%emt 0:00:02]} 75. Kf7 {[%emt 0:00:02]} a2 {[%emt 0:00:03]} 76. g8=Q {[%emt 0:00:04]} Qxg8+ {[%emt 0:00:02]} 77. Kxg8 {[%emt 0:00:02]} a1=Q {[%emt 0:00:03]} 0-1